bitfinex/quotes_SOLUSD_20250626
["timestamp","ask_amount","ask_price","bid_price","bid_amount"]
[1750909923494,5.51758659,145.84,145.79,5.51758659]
[1750909923868,31.51758659,145.84,145.79,5.51758659]
[1750909924070,31.51758659,145.84,145.78,35.13950928]
[1750909924272,5.51758659,145.84,145.79,5.51758659]
[1750909925188,5.51758659,145.84,145.8,6.85871056]
[1750909925498,31.51758659,145.85,145.81,28.26]
[1750909925702,5.51758659,145.84,145.81,28.26]
[1750909926569,26.0,145.85,145.81,35.11823495]
[1750909926799,5.51758659,145.85,145.81,40.63582154]
[1750909927093,5.51758659,145.85,145.81,35.11823495]
[1750909931529,26.0,145.86,145.82,5.51758659]
[1750909932289,5.51758659,145.88,145.83,5.51758659]
[1750909932505,5.51758659,145.89,145.84,28.22]
[1750909932801,5.51758659,145.89,145.84,33.73758659]
[1750909932989,5.51758659,145.88,145.84,33.73758659]
[1750909933530,6.2571,145.9,145.84,33.73758659]
[1750909933531,5.51758659,145.87,145.84,28.22]
[1750909934407,26.0,145.89,145.84,28.22]
[1750909934608,5.51758659,145.87,145.84,28.22]
[1750909935302,5.51758659,145.88,145.84,28.22]
[1750909935887,31.51758659,145.89,145.84,40.59438442]
[1750909936087,26.0,145.89,145.85,5.51758659]
[1750909937291,5.55758659,145.9,145.86,5.51758659]
[1750909937606,0.04,145.9,145.87,28.24]
[1750909937779,0.04,145.9,145.87,35.09525549]
[1750909937985,0.04,145.9,145.88,5.51758659]
[1750909938183,0.04,145.9,145.87,36.65845549]
[1750909938184,0.04,145.9,145.89,5.51758659]
[1750909939289,0.04,145.91,145.9,0.14216157]
[1750909939486,0.04,145.91,145.9,52.85372016]
[1750909939695,0.04,145.91,145.9,40.77375775]
[1750909940486,0.04,145.91,145.9,59.70772975]
[1750909945217,0.04,145.91,145.9,60.3931307]
[1750909945400,0.04,145.91,145.9,148.40772975]
[1750909954625,0.04,145.91,145.9,174.40772975]
[1750909955324,0.04,145.91,145.9,148.40772975]
[1750909955533,0.04,145.92,145.91,19.07613357]
[1750909955834,0.04,145.92,145.91,30.79666073]
[1750909956415,0.04,145.93,145.92,0.14216157]
[1750909956619,0.04,145.93,145.92,90.57680675]
[1750909957324,0.04,145.93,145.92,65.26211376]
[1750909957500,0.04,145.95,145.94,26.28432314]
[1750909957827,0.04,145.95,145.94,66.14190973]
[1750909958321,0.04,145.95,145.94,72.99404074]
[1750909960624,0.04,145.95,145.94,91.78585117]
[1750909962600,0.04,145.95,145.94,34.34]
[1750909962803,0.04,145.95,145.94,46.85187917]
[1750909964618,0.04,145.95,145.94,46.7097176]
[1750909965715,0.04,145.95,145.94,41.19213101]
[1750909965914,0.04,145.95,145.94,65.78585117]
[1750909969910,0.04,145.95,145.94,46.85187917]
[1750909970330,0.04,145.95,145.94,46.7097176]
[1750909971038,0.04,145.95,145.94,46.6897176]
[1750909973524,0.04,145.95,145.94,39.83758659]
[1750909973841,0.04,145.95,145.94,34.32]
[1750909976361,5.55758659,145.95,145.91,6.85341428]
[1750909976637,5.51758659,145.93,145.9,6.85378762]
[1750909976843,5.51758659,145.92,145.89,6.14]
[1750909977029,5.51758659,145.94,145.89,46.67197663]
[1750909978132,5.51758659,145.93,145.89,46.67197663]
[1750909980128,5.51758659,145.93,145.89,41.15439004]
[1750909981642,0.04,145.95,145.89,41.15439004]
[1750909981832,5.51758659,145.93,145.89,41.15439004]
[1750909982231,5.51758659,145.94,145.89,46.67197663]
[1750909982446,5.55758659,145.95,145.9,5.51758659]
[1750909982640,5.55758659,145.95,145.91,28.16]
[1750909983542,0.04,145.95,145.91,28.16]
[1750909983739,5.55758659,145.95,145.91,33.67758659]
[1750909984552,5.55758659,145.95,145.91,40.53092773]
[1750909984735,5.51758659,145.94,145.91,28.16]
[1750909986630,5.51758659,145.94,145.86,107.653972]
[1750909986631,5.51758659,145.92,145.86,6.87547542]
[1750909986831,5.51758659,145.89,145.87,28.16]
[1750909987359,5.51758659,145.91,145.87,28.16]
[1750909988659,5.51758659,145.91,145.87,35.01498679]
[1750909989452,5.51758659,145.9,145.87,35.01498679]
[1750909990449,5.51758659,145.9,145.87,28.16]
[1750909991846,5.51758659,145.9,145.87,35.01541165]
[1750909992958,5.51758659,145.9,145.86,6.8758892]
[1750909993167,5.51758659,145.9,145.88,28.18]
[1750909995866,5.51758659,145.89,145.86,0.02]
[1750909996181,5.51758659,145.88,145.86,28.2]
[1750909996353,5.51758659,145.89,145.86,28.2]
[1750909998162,5.51758659,145.88,145.86,28.2]
[1750909998551,5.51758659,145.88,145.86,0.02]
[1750909999258,5.51758659,145.87,145.86,0.02]
[1750910000163,7.11308659,145.87,145.86,0.02]
[1750910002792,33.11308659,145.87,145.86,0.02]
[1750910007575,31.51758659,145.87,145.86,0.02]
[1750910008270,6.0045,145.88,145.86,0.02]
[1750910008483,5.51758659,145.88,145.86,0.02]
[1750910008657,5.51758659,145.89,145.86,0.02]
[1750910009675,5.51758659,145.9,145.86,0.02]
[1750910010078,27.5575,145.91,145.86,0.02]
[1750910010258,5.51758659,145.9,145.86,0.02]
[1750910010460,5.51758659,145.88,145.86,0.02]
[1750910012856,5.51758659,145.89,145.86,0.02]
[1750910013280,5.51758659,145.9,145.86,0.02]
[1750910014585,5.51758659,145.89,145.86,6.8758892]
[1750910015056,5.51758659,145.91,145.86,12.39347579]
[1750910015260,5.51758659,145.91,145.87,5.51758659]
[1750910015464,5.51758659,145.91,145.86,12.39347579]
[1750910016204,31.51758659,145.92,145.87,5.51758659]
[1750910016404,5.51758659,145.91,145.88,28.18]
[1750910017659,5.51758659,145.9,145.88,28.18]
[1750910020805,5.51758659,145.91,145.88,35.03478274]
[1750910021793,31.51758659,145.92,145.88,35.03478274]
[1750910024205,5.51758659,145.91,145.88,35.03478274]
[1750910024410,5.51758659,145.9,145.88,35.03478274]
[1750910026593,5.51758659,145.91,145.88,35.03478274]
[1750910026904,31.51758659,145.92,145.88,35.03478274]
[1750910027317,31.51758659,145.93,145.88,40.55236933]
[1750910028622,31.51758659,145.93,145.89,5.51758659]
[1750910028796,31.51758659,145.93,145.9,6.85400959]
[1750910028994,5.51758659,145.93,145.9,6.85400959]
[1750910030899,5.51758659,145.93,145.89,6.8544794]
[1750910034918,5.51758659,145.92,145.89,6.8544794]
[1750910035216,5.51758659,145.9,145.86,88.72]
[1750910035421,5.51758659,145.89,145.86,0.02]
[1750910036012,5.51758659,145.89,145.86,6.87574576]
[1750910038694,5.51758659,145.89,145.86,0.02]
[1750910038927,5.51758659,145.88,145.86,0.02]
[1750910039297,13.52758659,145.92,145.86,0.02]
[1750910039501,5.51758659,145.87,145.86,0.02]
[1750910041122,5.51758659,145.88,145.86,0.02]
[1750910042216,5.51758659,145.89,145.86,0.02]
[1750910042422,5.51758659,145.9,145.86,0.02]
[1750910043311,5.51758659,145.9,145.86,5.53758659]
[1750910043507,5.51758659,145.9,145.87,35.0154192]
[1750910043928,5.51758659,145.91,145.87,35.0154192]
[1750910044623,5.51758659,145.9,145.87,35.0154192]
[1750910045222,5.51758659,145.89,145.87,28.16]
[1750910045525,5.51758659,145.88,145.87,28.16]
[1750910047742,5.51758659,145.89,145.87,28.16]
[1750910051919,26.0,145.92,145.87,35.01522949]
[1750910052116,5.51758659,145.91,145.87,35.01522949]
[1750910052434,26.0,145.92,145.87,28.16]
[1750910052636,5.51758659,145.89,145.86,0.02]
[1750910053126,5.51758659,145.88,145.86,0.02]
[1750910055642,5.51758659,145.87,145.86,0.02]
[1750910059133,26.0,145.89,145.86,0.02]
[1750910059340,5.51758659,145.88,145.86,0.02]
[1750910059643,5.51758659,145.87,145.86,0.02]
[1750910059944,5.51758659,145.88,145.86,0.02]
[1750910060727,3.80384928,145.88,145.86,0.02]
[1750910065459,5.51758659,145.89,145.86,0.02]
[1750910066132,5.51758659,145.88,145.86,0.02]
[1750910067731,5.51758659,145.89,145.86,0.02]
[1750910069132,26.0,145.9,145.86,35.03569348]
[1750910069337,5.51758659,145.91,145.86,40.55328007]
[1750910072652,5.51758659,145.9,145.86,40.55328007]
[1750910073554,5.51758659,145.9,145.86,35.03569348]
[1750910073741,5.51758659,145.89,145.86,35.03569348]
[1750910073942,5.51758659,145.89,145.86,28.18]
[1750910075461,34.60353397,145.92,145.86,28.18]
[1750910075462,5.51758659,145.88,145.86,28.18]
[1750910075643,5.51758659,145.89,145.86,28.18]
[1750910075958,5.51758659,145.88,145.86,28.18]
[1750910076338,5.51758659,145.88,145.86,0.02]
[1750910076538,41.94299467,145.92,145.86,0.02]
[1750910076539,5.51758659,145.87,145.86,0.02]
[1750910085152,31.51758659,145.87,145.86,0.02]
[1750910089207,26.0,145.87,145.86,0.02]
[1750910089354,31.51758659,145.87,145.86,0.02]
[1750910097893,26.0,145.87,145.86,0.02]
[1750910098107,31.51758659,145.87,145.86,0.02]
[1750910100280,5.51758659,145.87,145.86,0.02]
[1750910104392,29.54432105,145.87,145.86,0.02]
[1750910105096,3.54432105,145.87,145.86,0.02]
[1750910108982,3.57305492,145.89,145.86,0.02]
[1750910109186,3.54432105,145.89,145.86,0.02]
[1750910109682,3.54432105,145.88,145.86,0.02]
[1750910113598,3.54432105,145.87,145.86,0.02]
[1750910114001,29.54432105,145.87,145.86,0.02]
[1750910123518,37.40492105,145.87,145.86,0.02]
[1750910123716,42.4328565,145.87,145.86,0.02]
[1750910124797,68.2222477,145.87,145.86,0.02]
[1750910125397,61.3668285,145.87,145.86,0.02]
[1750910126109,68.36440927,145.87,145.86,0.02]
[1750910126501,42.4328565,145.87,145.86,0.02]
[1750910129813,46.00678037,145.87,145.86,0.02]
[1750910134397,71.93833314,145.87,145.86,0.02]
[1750910136809,71.93833314,145.87,145.84,0.02]
[1750910136810,0.14216157,145.86,145.84,0.02]
[1750910137120,62.65557725,145.85,145.84,0.02]
[1750910137294,67.6835127,145.85,145.84,0.02]
[1750910140007,74.53987197,145.85,145.84,0.02]
[1750910140904,74.25554883,145.85,145.84,0.02]
[1750910142031,74.53987197,145.85,145.84,0.02]
[1750910146216,67.6835127,145.85,145.84,0.02]
[1750910146822,3.54432105,145.85,145.84,0.02]
[1750910147132,29.54432105,145.85,145.84,0.02]
[1750910147324,26.0,145.85,145.84,0.02]
[1750910147534,29.54432105,145.85,145.84,0.02]
[1750910148518,26.0,145.85,145.84,0.02]
[1750910148829,29.54432105,145.85,145.84,0.02]
[1750910149531,3.54432105,145.86,145.84,0.02]
[1750910149841,3.54432105,145.85,145.84,0.02]
[1750910151015,29.54432105,145.85,145.84,0.02]
[1750910152334,31.53890932,145.85,145.84,0.02]
[1750910172146,38.39526859,145.85,145.84,0.02]
[1750910172349,67.89876821,145.85,145.84,0.02]
[1750910173029,55.50349962,145.85,145.84,0.02]
[1750910173226,68.04092978,145.85,145.84,0.02]
[1750910174351,74.69379954,145.85,145.84,0.02]
[1750910177348,221.19379954,145.85,145.84,0.02]
[1750910178062,181.07675598,145.85,145.84,0.02]
[1750910191167,0.28432314,145.83,145.82,0.02]
[1750910191345,53.51072798,145.83,145.82,0.02]
[1750910191666,33.06769773,145.83,145.82,0.02]
[1750910191849,33.2098593,145.83,145.8,0.02]
[1750910192050,48.48010968,145.81,145.8,0.02]
[1750910192251,53.51072798,145.81,145.8,0.02]
[1750910192642,53.65288955,145.81,145.78,0.02]
[1750910192845,3.54613768,145.79,145.78,0.02]
[1750910196653,29.48145226,145.79,145.77,0.02]
[1750910196854,29.48145226,145.79,145.69,1.5508]
[1750910196855,26.0,145.75,145.69,1.5508]
[1750910197055,3.54613768,145.71,145.69,1.5508]
[1750910198264,3.54613768,145.72,145.69,1.5508]
[1750910199155,3.54613768,145.71,145.69,1.5508]
[1750910199473,3.54613768,145.7,145.65,12.92534701]
[1750910199686,3.54613768,145.7,145.66,3.54613768]
[1750910199887,26.0,145.72,145.67,3.54613768]
[1750910200054,3.54613768,145.7,145.66,3.54613768]
[1750910200257,5.54820485,145.7,145.66,5.54820485]
[1750910200454,5.54820485,145.7,145.65,12.92534701]
[1750910200669,26.0,145.72,145.66,5.54820485]
[1750910200670,5.54820485,145.71,145.66,5.54820485]
[1750910201452,5.54820485,145.71,145.67,6.86483146]
[1750910201803,31.54820485,145.72,145.67,12.41303631]
[1750910203164,26.0,145.72,145.68,5.54820485]
[1750910203353,26.0,145.72,145.69,5.54820485]
[1750910203570,5.54820485,145.74,145.69,5.54820485]
[1750910203901,5.54820485,145.74,145.7,5.54820485]
[1750910205178,5.54820485,145.72,145.67,5.54820485]
[1750910205683,5.54820485,145.71,145.66,12.4135076]
[1750910206858,5.54820485,145.71,145.65,34.14]
[1750910206859,5.54820485,145.71,145.67,12.41275276]
[1750910207361,31.54820485,145.72,145.68,5.54820485]
[1750910207562,31.54820485,145.72,145.67,6.86454791]
[1750910207760,31.54820485,145.72,145.68,5.54820485]
[1750910208365,26.0,145.72,145.69,5.54820485]
[1750910208572,178.04820485,145.75,145.7,5.54820485]
[1750910208780,31.54820485,145.75,145.7,5.54820485]
[1750910209079,146.78432314,145.78,145.7,12.41119571]
[1750910209305,5.54820485,145.75,145.7,6.86299086]
[1750910209456,146.78432314,145.78,145.7,6.86299086]
[1750910209457,5.54820485,145.74,145.7,6.86299086]
[1750910210670,5.54820485,145.73,145.7,6.86299086]
[1750910212898,5.54820485,145.74,145.7,6.86299086]
[1750910216297,31.54820485,145.75,145.7,12.41119571]
[1750910216473,5.54820485,145.75,145.71,5.54820485]
[1750910217291,5.54820485,145.75,145.72,6.86247598]
[1750910219190,5.54820485,145.76,145.72,6.86247598]
[1750910219663,172.5,145.78,145.72,6.86247598]
[1750910219857,5.54820485,145.76,145.72,6.86247598]
[1750910220292,5.54820485,145.75,145.72,6.86247598]
[1750910222092,5.54820485,145.75,145.71,6.86294694]
[1750910222264,5.54820485,145.75,145.71,12.41115179]
[1750910223988,172.5,145.78,145.71,12.41115179]
[1750910224171,5.54820485,145.77,145.73,12.41020992]
[1750910224377,5.54820485,145.77,145.73,6.86200507]
[1750910224598,5.54820485,145.76,145.73,6.86200507]
[1750910225388,5.54820485,145.76,145.72,6.86247598]
[1750910228285,5.54820485,145.74,145.71,6.86294694]
[1750910228488,26.0,145.78,145.71,6.86294694]
[1750910228489,5.54820485,145.75,145.71,6.86294694]
[1750910228690,26.0,145.78,145.72,5.54820485]
[1750910228868,5.54820485,145.77,145.72,5.54820485]
[1750910229197,26.0,145.78,145.72,5.54820485]
[1750910229370,5.54820485,145.76,145.71,24.02031431]
[1750910229573,5.54820485,145.76,145.72,5.54820485]
[1750910229798,26.0,145.77,145.72,5.54820485]
[1750910230098,5.54820485,145.76,145.72,5.54820485]
[1750910230589,5.54820485,145.76,145.73,6.86200507]
[1750910232578,5.54820485,145.76,145.72,6.86247598]
[1750910233967,5.54820485,145.76,145.72,12.41068083]
[1750910234186,5.54820485,145.76,145.72,5.54820485]
[1750910234792,26.0,145.77,145.72,5.54820485]
[1750910234988,5.54820485,145.77,145.72,5.54820485]
[1750910235370,31.54820485,145.78,145.73,5.54820485]
[1750910235684,5.54820485,145.79,145.74,35.16090485]
[1750910236188,5.54820485,145.79,145.75,6.86106346]
[1750910236398,5.54820485,145.78,145.75,6.86106346]
[1750910238687,31.54820485,145.79,145.75,6.86106346]
[1750910239388,5.54820485,145.8,145.75,12.40926831]
[1750910240296,6.08,145.83,145.77,5.54820485]
[1750910240297,5.54820485,145.81,145.77,5.54820485]
[1750910240598,5.54820485,145.82,145.77,5.54820485]
[1750910240888,31.54820485,145.82,145.78,28.06]
[1750910241090,5.54820485,145.82,145.78,28.06]
[1750910241466,5.54820485,145.81,145.78,28.06]
[1750910241670,5.54820485,145.8,145.78,28.06]
[1750910241888,0.04,145.83,145.78,28.06]
[1750910242199,5.54820485,145.8,145.78,28.06]
[1750910245099,5.54820485,145.79,145.78,28.06]
[1750910245413,5.54820485,145.79,145.75,34.92096944]
[1750910250113,5.54820485,145.8,145.75,40.46917429]
[1750910250398,5.54820485,145.8,145.76,5.54820485]
[1750910253600,5.54820485,145.82,145.78,40.46739009]
[1750910255804,31.58820485,145.83,145.78,40.46739009]
[1750910256502,5.58820485,145.83,145.79,5.54820485]
[1750910258306,5.58820485,145.83,145.79,12.40712544]
[1750910260308,0.04,145.83,145.79,12.40712544]
[1750910260611,0.04,145.83,145.8,5.54820485]
[1750910260820,0.04,145.83,145.81,28.04]
[1750910261322,5.58820485,145.83,145.81,28.04]
[1750910261611,5.58820485,145.83,145.79,6.85892059]
[1750910261612,5.54820485,145.82,145.79,28.04]
[1750910261906,5.54820485,145.8,145.77,40.9400039]
[1750910262114,5.54820485,145.82,145.77,46.48820875]
[1750910263108,26.04,145.83,145.77,46.48820875]
[1750910263308,5.54820485,145.82,145.77,46.48820875]
[1750910263703,26.04,145.83,145.77,40.9400039]
[1750910263904,5.54820485,145.81,145.77,46.48820875]
[1750910264193,5.54820485,145.82,145.77,46.48820875]
[1750910265720,5.54820485,145.82,145.78,5.54820485]
[1750910265896,31.58820485,145.83,145.78,5.54820485]
[1750910266214,5.58820485,145.83,145.78,5.54820485]
[1750910266415,0.04,145.83,145.79,5.54820485]
[1750910266622,0.04,145.83,145.8,28.04]
[1750910267802,0.04,145.83,145.8,34.89824745]
[1750910268116,0.04,145.83,145.81,5.54820485]
[1750910268819,0.04,145.83,145.8,40.4464523]
[1750910269540,0.04,145.83,145.8,34.89824745]
[1750910269717,0.04,145.83,145.8,40.4464523]
[1750910270814,5.58820485,145.83,145.8,34.89824745]
[1750910275519,5.58820485,145.83,145.8,28.04]
[1750910276116,5.54820485,145.81,145.8,28.04]
[1750910276413,5.54820485,145.81,145.77,12.89969664]
[1750910276414,5.54820485,145.82,145.78,28.04]
[1750910277699,0.04,145.83,145.78,28.04]
[1750910277899,5.54820485,145.82,145.78,34.89959524]
[1750910280506,0.04,145.83,145.78,34.89959524]
[1750910280723,5.54820485,145.82,145.78,34.89959524]
[1750910281308,0.04,145.83,145.78,40.44780009]
[1750910281505,5.58820485,145.83,145.78,40.44780009]
[1750910281717,0.04,145.83,145.79,5.69036642]
[1750910281916,0.04,145.83,145.8,33.58820485]
[1750910282528,0.04,145.83,145.81,6.85824017]
[1750910282733,0.04,145.83,145.82,33.58820485]
[1750910284225,0.04,145.83,145.82,40.58813627]
[1750910284531,0.04,145.83,145.82,35.03993142]
[1750910286618,0.04,145.83,145.82,40.58813627]
[1750910289135,0.04,145.83,145.82,59.52210827]
[1750910289338,0.04,145.83,145.82,148.22210827]
[1750910289715,0.04,145.83,145.82,142.67390342]
[1750910290309,0.04,145.83,145.82,123.73993142]
[1750910292817,0.04,145.83,145.82,35.03993142]
[1750910295037,0.04,145.83,145.82,59.52210827]
[1750910298137,0.04,145.85,145.82,86.20788525]
[1750910298329,0.04,145.85,145.84,24.62433842]
[1750910298528,0.04,145.85,145.84,52.64433842]
[1750910300445,0.04,145.85,145.84,59.50116782]
[1750910301024,0.04,145.85,145.84,53.95296297]
[1750910303644,0.04,145.85,145.84,35.01899097]
[1750910310233,5.58820485,145.85,145.84,28.02]
[1750910310542,5.58820485,145.85,145.84,28.0]
[1750910310543,0.04,145.85,145.84,28.0]
[1750910312035,0.04,145.85,145.84,34.8568294]
[1750910312945,0.04,145.85,145.84,34.99899097]
[1750910314153,0.04,145.85,145.84,59.48116782]
[1750910316362,0.04,145.85,145.84,34.8568294]
[1750910323966,5.58820485,145.85,145.83,6.02]
[1750910324139,5.54820485,145.84,145.83,6.02]
[1750910324338,5.54820485,145.84,145.83,34.02]
[1750910324566,5.54820485,145.84,145.81,6.85819078]
[1750910324766,5.54820485,145.82,145.79,6.85905078]
[1750910324971,5.54820485,145.8,145.78,12.87952363]
[1750910325154,5.54820485,145.79,145.78,12.87952363]
[1750910325348,5.54820485,145.79,145.77,0.02]
[1750910325645,5.54820485,145.78,145.77,0.02]
[1750910326456,5.54820485,145.78,145.77,28.02]
[1750910327255,7.6082,145.81,145.77,28.02]
[1750910327457,5.54820485,145.79,145.77,28.02]
[1750910328171,5.54820485,145.78,145.77,34.87981597]
[1750910335684,5.54820485,145.79,145.77,34.87981597]
[1750910335854,5.54820485,145.8,145.77,34.87981597]
[1750910336663,5.54820485,145.81,145.77,34.87981597]
[1750910337862,5.54820485,145.8,145.77,34.87981597]
[1750910340755,5.54820485,145.81,145.77,34.87981597]
[1750910342078,26.0,145.84,145.78,0.14216157]
[1750910342287,5.54820485,145.81,145.8,6.85871056]
[1750910342581,5.54820485,145.81,145.8,34.85871056]
[1750910346082,5.54820485,145.82,145.8,34.85871056]
[1750910346801,5.54820485,145.83,145.8,34.85871056]
[1750910353188,8.0411,145.85,145.8,34.85871056]
[1750910353388,5.54820485,145.83,145.8,34.85871056]
[1750910354296,5.54820485,145.82,145.8,34.85871056]
[1750910364305,3.54440538,145.82,145.8,34.85871056]
[1750910364715,3.54440538,145.83,145.8,34.85871056]
[1750910364892,3.58440538,145.85,145.81,0.14216157]
[1750910365089,0.04,145.85,145.84,3.82872852]
[1750910365303,0.04,145.85,145.84,56.60053895]
[1750910368304,0.04,145.85,145.84,65.44511421]
[1750910369678,0.04,145.85,145.84,154.14511421]
[1750910371792,0.04,145.85,145.84,185.67726545]
[1750910372289,0.04,145.85,145.84,180.14511421]
[1750910377894,0.04,145.85,145.84,185.67726545]
[1750910378810,0.04,145.85,145.84,180.14511421]
[1750910384213,0.04,145.85,145.84,174.61296297]
[1750910384415,0.04,145.85,145.84,180.14511421]
[1750910386726,0.04,145.85,145.84,34.8168294]
[1750910387299,0.04,145.85,145.84,53.60863983]
[1750910388420,0.04,145.85,145.84,53.46647826]
[1750910388925,0.04,145.85,145.84,53.60863983]
[1750910392398,0.04,145.85,145.84,148.12511421]
[1750910392598,0.04,145.85,145.84,174.12511421]
[1750910398403,0.04,145.85,145.84,194.70511421]
[1750910400221,0.04,145.85,145.84,168.70511421]
[1750910400412,0.04,145.85,145.84,178.70511421]
[1750910402504,0.04,145.85,145.84,184.23726545]
[1750910402707,0.04,145.88,145.87,45.07613357]
[1750910403029,0.04,145.88,145.87,167.95382673]
[1750910403226,0.04,145.88,145.87,167.26828481]
[1750910404235,0.04,145.88,145.87,174.12370401]
[1750910406812,0.04,145.88,145.87,179.72197919]
[1750910410708,0.04,145.88,145.87,200.30197919]
[1750910411627,0.04,145.91,145.9,39.22964886]
[1750910411826,0.04,145.91,145.9,168.41368576]
[1750910412129,0.04,145.91,145.9,167.72828481]
[1750910412725,0.04,145.91,145.9,174.5822944]
[1750910413747,0.04,145.92,145.91,0.42648471]
[1750910413917,0.04,145.92,145.91,53.23363879]
[1750910415141,0.04,145.92,145.91,148.70717864]
[1750910415310,0.04,145.92,145.91,172.09301543]
[1750910418916,0.04,145.94,145.93,26.42648471]
[1750910419117,0.04,145.94,145.93,167.81354486]
[1750910419320,0.04,145.94,145.93,177.12828481]
[1750910419520,0.04,145.94,145.93,197.70828481]
[1750910419931,0.04,145.94,145.93,204.56088537]
[1750910420624,0.04,145.96,145.94,39.65613357]
[1750910420825,0.04,145.96,145.94,45.87349791]
[1750910421545,0.04,145.96,145.94,24.60828481]
[1750910422068,0.04,145.96,145.94,31.46041582]
[1750910423124,0.04,145.96,145.94,120.04041582]
[1750910423945,0.04,145.96,145.94,120.72562892]
[1750910425249,0.04,145.96,145.95,0.42648471]
[1750910425540,0.04,145.96,145.95,52.54828481]
[1750910426441,0.04,145.96,145.95,59.39994633]
[1750910427354,0.04,145.96,145.95,60.08511248]
[1750910428840,0.04,145.96,145.95,148.66511248]
[1750910429033,0.04,145.96,145.95,147.97994633]
[1750910430343,0.04,145.96,145.95,186.70378909]
[1750910430545,0.04,145.96,145.95,156.12378909]
[1750910430961,0.04,145.96,145.95,166.12378909]
[1750910431365,0.04,145.96,145.95,186.70378909]
[1750910433662,0.04,145.98,145.97,138.23613357]
[1750910433866,0.04,145.98,145.97,334.71212757]
[1750910434238,0.04,145.98,145.97,304.13212757]
[1750910434483,0.04,145.98,145.97,314.13212757]
[1750910435567,0.04,145.98,145.97,305.45069908]
[1750910435870,0.04,145.98,145.97,310.98285032]
[1750910436249,0.04,145.98,145.97,320.98285032]
[1750910436452,0.04,145.98,145.97,310.98285032]
[1750910436666,0.04,145.98,145.97,320.98285032]
[1750910437064,0.04,145.98,145.97,156.55069908]
[1750910437259,0.04,145.98,145.97,162.08285032]
[1750910438355,0.04,145.98,145.97,172.08285032]
[1750910439369,0.04,145.98,145.97,192.66285032]
[1750910440478,0.04,146.02,145.98,128.23613357]
[1750910440685,0.04,146.02,145.98,162.37331015]
[1750910440850,0.04,146.02,145.98,161.68828481]
[1750910441874,0.04,146.02,145.98,141.99990231]
[1750910442074,0.04,146.02,145.98,147.53205355]
[1750910442376,0.04,146.02,145.98,147.95853826]
[1750910443849,7.9803,146.02,145.98,147.95853826]
[1750910444060,7.9803,146.02,145.98,173.95853826]
[1750910445257,7.9803,146.02,145.98,168.42638702]
[1750910445581,7.9803,146.02,145.98,173.95853826]
[1750910445875,13.51245124,146.02,145.98,51.49990231]
[1750910446066,5.57215124,146.01,145.98,53.41990231]
[1750910446458,5.57215124,146.01,145.98,53.84638702]
[1750910446785,5.57215124,146.01,145.98,25.92638702]
[1750910446957,0.04,146.01,145.98,53.84638702]
[1750910447158,5.57215124,146.01,145.98,53.84638702]
[1750910448404,5.53215124,146.0,145.98,53.56206388]
[1750910448980,0.04,146.01,145.98,53.56206388]
[1750910449284,5.53215124,146.0,145.98,53.56206388]
[1750910450280,5.53215124,146.0,145.98,25.64206388]
[1750910450573,5.53215124,146.0,145.98,53.56206388]
[1750910450801,5.57215124,145.99,145.98,6.85025345]
[1750910450986,5.57215124,145.99,145.98,34.77025345]
[1750910455869,5.57215124,145.99,145.97,12.8306048]
[1750910456072,13.58385124,145.98,145.97,5.98]
[1750910456279,13.58385124,145.98,145.95,27.92]
[1750910456470,5.53215124,145.96,145.95,27.92]
[1750910456878,8.0517,145.98,145.94,27.92]
[1750910457197,5.53215124,145.95,145.94,34.77213101]
[1750910457381,5.53215124,145.96,145.94,34.77213101]
[1750910457574,8.0517,145.98,145.95,18.79181043]
[1750910457760,8.0517,145.98,145.96,27.92]
[1750910458789,13.58385124,145.98,145.96,27.92]
[1750910459497,13.58385124,145.98,145.97,6.85072275]
[1750910461983,8.0517,145.98,145.97,6.85072275]
[1750910462181,13.58385124,145.98,145.97,6.85072275]
[1750910463401,8.0517,145.98,145.97,6.85072275]
[1750910466901,13.58385124,145.98,145.97,6.85072275]
[1750910471089,8.0517,145.98,145.97,6.85072275]